bitfinex/quotes_BTCUSD_20250601
["timestamp","ask_amount","ask_price","bid_price","bid_amount"]
[1748817346836,0.06811789,105580.0,105570.0,0.9779404]
[1748817347293,0.05864703,105580.0,105570.0,0.9779404]
[1748817347512,0.05864703,105580.0,105570.0,0.97795991]
[1748817347912,0.0681178,105580.0,105570.0,0.97795991]
[1748817348142,0.0681178,105580.0,105570.0,0.96028145]
[1748817348339,0.0681178,105580.0,105570.0,0.9779745]
[1748817349068,0.0681178,105580.0,105570.0,0.96028145]
[1748817349262,0.0681178,105580.0,105570.0,0.97797413]
[1748817349423,0.0681178,105580.0,105570.0,0.97797374]
[1748817349828,0.04917635,105580.0,105570.0,0.97797374]
[1748817350033,0.05864703,105580.0,105570.0,0.96028145]
[1748817350234,0.05864703,105580.0,105570.0,0.97797373]
[1748817350434,0.03284847,105580.0,105570.0,0.97797373]
[1748817351179,0.03284847,105580.0,105570.0,0.97797317]
[1748817351383,0.03284847,105580.0,105570.0,0.97797314]
[1748817351600,0.03284847,105580.0,105570.0,0.97797312]
[1748817352038,0.02384847,105580.0,105570.0,0.97697317]
[1748817352195,0.02684847,105580.0,105570.0,0.97697317]
[1748817352399,0.0622901,105580.0,105570.0,0.97697317]
[1748817352615,0.07176123,105580.0,105570.0,0.97697317]
[1748817352797,0.0542901,105580.0,105570.0,0.95928145]
[1748817353003,0.05629001,105580.0,105570.0,0.97697354]
[1748817353230,0.04681915,105580.0,105570.0,0.95928145]
[1748817353430,0.04681915,105580.0,105570.0,0.97697354]
[1748817353636,0.05628992,105580.0,105570.0,0.99569421]
[1748817354257,0.07083077,105580.0,105570.0,0.68077341]
[1748817354617,0.27920293,105580.0,105570.0,0.9773747]
[1748817354833,0.27920293,105580.0,105570.0,0.36749641]
[1748817355042,0.35298148,105580.0,105570.0,0.02387322]
[1748817355257,0.35298148,105580.0,105570.0,0.00618135]
[1748817355470,0.35298148,105580.0,105570.0,0.22279815]
[1748817355880,0.35298148,105580.0,105570.0,0.22279199]
[1748817356298,0.35298148,105580.0,105570.0,0.20510148]
[1748817356496,0.36266806,105580.0,105570.0,0.20510148]
[1748817357112,0.36266806,105580.0,105570.0,0.21457368]
[1748817358313,0.36266806,105580.0,105570.0,0.22404579]
[1748817358865,0.18270974,105580.0,105570.0,0.23351772]
[1748817359081,0.08030217,105580.0,105570.0,0.33884377]
[1748817359284,0.08977348,105580.0,105570.0,0.33884377]
[1748817359461,0.09924488,105580.0,105570.0,0.33884377]
[1748817360101,0.0897742,105580.0,105570.0,0.33884377]
[1748817361314,0.09922572,105580.0,105570.0,0.33884377]
[1748817361534,0.09922626,105580.0,105570.0,0.32937202]
[1748817361747,0.09922626,105580.0,105570.0,0.33884377]
[1748817361968,0.08977474,105580.0,105570.0,0.33884377]
[1748817362209,0.08030325,105580.0,105570.0,0.33884377]
[1748817362474,0.27920455,105580.0,105570.0,0.00618135]
[1748817362694,0.2039886,105570.0,105560.0,0.84455678]
[1748817362917,0.24477965,105560.0,105550.0,0.21206086]
[1748817363138,0.07425934,105560.0,105550.0,0.96302235]
[1748817363345,0.07425898,105560.0,105550.0,0.96302235]
[1748817363565,0.07425898,105560.0,105550.0,0.95939296]
[1748817364449,0.06478606,105560.0,105550.0,0.95939296]
[1748817364662,0.07425889,105560.0,105550.0,0.95939296]
[1748817364876,0.07425889,105560.0,105550.0,0.96539296]
[1748817365923,0.0837319,105560.0,105550.0,0.96539296]
[1748817366335,0.08373181,105560.0,105550.0,0.97039296]
[1748817366536,0.07425889,105560.0,105550.0,0.97039296]
[1748817367176,0.06478606,105560.0,105550.0,0.97039296]
[1748817367393,0.06478606,105560.0,105550.0,0.67423296]
[1748817367604,0.06478606,105560.0,105550.0,0.97039296]
[1748817367866,0.04584085,105560.0,105550.0,0.97039296]
[1748817368081,0.03004085,105560.0,105550.0,0.97039296]
[1748817370337,0.06408427,105570.0,105560.0,0.21788446]
[1748817370544,0.06408427,105570.0,105560.0,0.31373876]
[1748817370957,0.0735562,105570.0,105560.0,0.31373876]
[1748817371169,0.06408427,105570.0,105560.0,0.31373876]
[1748817371433,0.05461252,105570.0,105560.0,0.31373876]
[1748817371648,0.06408445,105570.0,105560.0,0.31373876]
[1748817371940,0.05461252,105570.0,105560.0,0.31373876]
[1748817372362,0.04514085,105570.0,105560.0,0.32073876]
[1748817372573,0.02984085,105570.0,105560.0,0.32073876]
[1748817374055,0.03931252,105570.0,105560.0,0.32073876]
[1748817374271,0.02984085,105570.0,105560.0,0.32073876]
[1748817374463,0.03931243,105570.0,105560.0,0.32073876]
[1748817375077,0.04878418,105570.0,105560.0,0.32073876]
[1748817375631,0.02984085,105570.0,105560.0,0.32073876]
[1748817375840,0.0393126,105570.0,105560.0,0.32073876]
[1748817376057,0.03931252,105570.0,105560.0,0.32073876]
[1748817376260,0.02984085,105570.0,105560.0,0.32073876]
[1748817376469,0.03931252,105570.0,105560.0,0.32073876]
[1748817376704,0.02984085,105570.0,105560.0,0.32073876]
[1748817376913,0.03931252,105570.0,105560.0,0.32073876]
[1748817377193,0.02984085,105570.0,105560.0,0.32073876]
[1748817377633,0.03931252,105570.0,105560.0,0.32073876]
[1748817377854,0.06478436,105570.0,105560.0,0.32073876]
[1748817378065,0.27317695,105570.0,105560.0,0.31126629]
[1748817378292,0.25423318,105570.0,105560.0,0.1964657]
[1748817378511,0.25423318,105570.0,105560.0,0.21541208]
[1748817378726,0.25423318,105570.0,105560.0,0.22488509]
[1748817378932,0.25423318,105570.0,105560.0,0.21541208]
[1748817379135,0.25423318,105570.0,105560.0,0.22488509]
[1748817382977,0.25423318,105570.0,105560.0,0.23435801]
[1748817383183,0.25423318,105570.0,105560.0,0.24383084]
[1748817383932,0.06478543,105570.0,105560.0,0.24383084]
[1748817384169,0.06478445,105570.0,105560.0,0.24382985]
[1748817384366,0.02984085,105570.0,105560.0,0.24382985]
[1748817384575,0.04878418,105570.0,105560.0,0.33968415]
[1748817386695,0.03931243,105570.0,105560.0,0.33968415]
[1748817387318,0.02401243,105570.0,105560.0,0.33968415]
[1748817387551,0.03348418,105570.0,105560.0,0.35548415]
[1748817387747,0.02401243,105570.0,105560.0,0.35548415]
[1748817387936,0.01454085,105570.0,105560.0,0.35548415]
[1748817388177,0.02401243,105570.0,105560.0,0.35548415]
[1748817388601,0.03348427,105570.0,105560.0,0.35548415]
[1748817389035,0.03348418,105570.0,105560.0,0.35548415]
[1748817389254,0.08392849,105570.0,105560.0,0.3302115]
[1748817389451,0.08392849,105570.0,105560.0,0.007]
[1748817389452,0.34687291,105570.0,105560.0,0.007]
[1748817389633,0.34687291,105570.0,105560.0,0.02594647]
[1748817389833,0.33740089,105570.0,105560.0,0.21541217]
[1748817390271,0.33740089,105570.0,105560.0,0.22488527]
[1748817390653,0.33740089,105570.0,105560.0,0.21541217]
[1748817391180,0.33740089,105570.0,105560.0,0.23435828]
[1748817391590,0.33740089,105570.0,105560.0,0.007]
[1748817392934,0.43325519,105570.0,105560.0,0.007]
[1748817393147,4.99525119,105570.0,105560.0,0.007]
[1748817393361,4.99525119,105570.0,105560.0,0.003]
[1748817393541,4.99725119,105570.0,105560.0,0.003]
[1748817393744,0.05896474,105540.0,105530.0,0.8634323]
[1748817393961,0.23564246,105540.0,105520.0,0.19897371]
[1748817394170,0.06844365,105530.0,105520.0,0.32325781]
[1748817394373,0.07456768,105530.0,105520.0,0.33273405]
[1748817394790,0.07456768,105530.0,105520.0,0.67273405]
[1748817394993,0.07456768,105530.0,105520.0,0.67282595]
[1748817395403,0.08404365,105530.0,105520.0,0.6539137]
[1748817395624,0.07456759,105530.0,105520.0,0.66338994]
[1748817395829,0.05896759,105530.0,105520.0,0.66338994]
[1748817396814,0.05896759,105530.0,105520.0,0.67038994]
[1748817397002,0.06844347,105530.0,105520.0,0.66338994]
[1748817397205,0.06844347,105530.0,105520.0,0.66938994]
[1748817397572,0.06844347,105530.0,105520.0,0.66338994]
[1748817397777,0.26408805,105530.0,105520.0,9.19e-05]
[1748817397908,0.25461226,105530.0,105520.0,9.19e-05]
[1748817398102,0.34705226,105530.0,105520.0,0.0050919]
[1748817398373,0.34705226,105530.0,105520.0,0.0110919]
[1748817399256,0.14805646,105530.0,105520.0,0.21958253]
[1748817399470,0.36600303,105530.0,105520.0,0.21010611]
[1748817399696,0.34705208,105530.0,105520.0,0.21010611]
[1748817399906,0.33757638,105530.0,105520.0,0.21010629]
[1748817400120,0.33757638,105530.0,105520.0,0.21958307]
[1748817404414,0.33757638,105530.0,105520.0,0.21010629]
[1748817404803,0.33757638,105530.0,105520.0,0.22905958]
[1748817405244,0.33761638,105530.0,105520.0,0.23853609]
[1748817405450,0.33761638,105530.0,105520.0,0.22905958]
[1748817406070,0.33761638,105530.0,105520.0,0.23853609]
[1748817407108,0.33761638,105530.0,105520.0,0.22905958]
[1748817408243,0.33761638,105530.0,105520.0,0.21010629]
[1748817408455,0.32814041,105530.0,105520.0,0.0110919]
[1748817409296,0.38275031,105530.0,105520.0,0.0110919]
[1748817409498,0.38275031,105530.0,105520.0,0.0060919]
[1748817409717,0.38275031,105530.0,105520.0,9.19e-05]
[1748817409933,0.38275031,105530.0,105520.0,0.0030919]
[1748817410139,0.32814041,105530.0,105520.0,0.0070919]
[1748817412855,0.32814041,105530.0,105520.0,0.19662942]
[1748817413231,0.32814041,105530.0,105520.0,0.0070919]
[1748817415870,0.38275031,105530.0,105520.0,0.0070919]
[1748817416084,0.47860461,105530.0,105520.0,0.0070919]
[1748817416299,5.28203071,105530.0,105520.0,0.0070919]
[1748817416506,5.28203071,105530.0,105520.0,0.0040919]
[1748817416925,5.28503071,105530.0,105520.0,0.0040919]
[1748817417953,5.28503071,105530.0,105520.0,9.19e-05]
[1748817418363,5.28703071,105530.0,105520.0,9.19e-05]
[1748817418589,0.72503471,105530.0,105520.0,9.19e-05]
[1748817419641,0.75349471,105530.0,105520.0,9.19e-05]
[1748817421550,0.84600593,105530.0,105520.0,9.19e-05]
[1748817422301,0.75349471,105530.0,105520.0,9.19e-05]
[1748817422724,0.75844228,105530.0,105520.0,9.19e-05]
[1748817426513,0.66246798,105530.0,105520.0,9.19e-05]
[1748817428348,0.27406798,105530.0,105520.0,9.19e-05]
[1748817428585,0.64686798,105530.0,105520.0,9.19e-05]
[1748817429805,0.61840798,105530.0,105520.0,9.19e-05]
[1748817431958,0.23000798,105530.0,105520.0,9.19e-05]
[1748817432179,0.61840798,105530.0,105520.0,9.19e-05]
[1748817433549,0.61836798,105530.0,105520.0,9.19e-05]
[1748817434004,0.21546713,105530.0,105520.0,0.18962942]
[1748817434201,0.11635114,105530.0,105520.0,0.22388271]
[1748817434398,0.14036796,105530.0,105520.0,0.23335922]
[1748817434601,0.38587832,105530.0,105520.0,0.23335922]
[1748817434805,0.38598749,105530.0,105520.0,0.23335922]
[1748817435008,0.38598749,105530.0,105520.0,0.21440611]
[1748817435212,0.37651161,105530.0,105520.0,0.21440629]
[1748817435548,0.30146041,105530.0,105520.0,0.0153919]
[1748817435763,0.30146041,105530.0,105520.0,0.02486877]
[1748817435977,0.30146041,105530.0,105520.0,9.19e-05]
[1748817436210,0.31676041,105530.0,105520.0,9.19e-05]
[1748817437523,0.33276041,105530.0,105520.0,9.19e-05]
[1748817438159,0.31676041,105530.0,105520.0,9.19e-05]
[1748817440577,0.22436041,105530.0,105520.0,9.19e-05]
[1748817440813,0.31676041,105530.0,105520.0,9.19e-05]
[1748817443177,0.22436041,105530.0,105520.0,9.19e-05]
[1748817443391,0.31676041,105530.0,105520.0,9.19e-05]
[1748817449693,0.38238682,105530.0,105520.0,9.19e-05]
[1748817450550,0.31676041,105530.0,105520.0,9.19e-05]
[1748817450753,0.38238997,105530.0,105520.0,9.19e-05]
[1748817451172,0.28998997,105530.0,105520.0,9.19e-05]
[1748817451387,0.38226997,105530.0,105520.0,9.19e-05]
[1748817452862,0.38229672,105530.0,105520.0,9.19e-05]
[1748817455775,0.38231811,105530.0,105520.0,9.19e-05]
[1748817459065,0.39891811,105530.0,105520.0,9.19e-05]
[1748817461650,0.39892041,105530.0,105520.0,9.19e-05]
[1748817466295,0.39892376,105530.0,105520.0,9.19e-05]
[1748817470671,0.3989298,105530.0,105520.0,9.19e-05]
[1748817473001,0.40387737,105530.0,105520.0,9.19e-05]
[1748817476898,0.38727737,105530.0,105520.0,9.19e-05]
[1748817478931,0.40307737,105530.0,105520.0,9.19e-05]
[1748817479687,0.40308021,105530.0,105520.0,9.19e-05]
[1748817482426,0.40308095,105530.0,105520.0,9.19e-05]
[1748817485932,0.38728095,105530.0,105520.0,9.19e-05]
[1748817487584,0.40358095,105530.0,105520.0,9.19e-05]
[1748817490982,0.43203995,105530.0,105520.0,9.19e-05]
[1748817494042,0.41573995,105530.0,105520.0,9.19e-05]
[1748817496032,0.41574291,105530.0,105520.0,9.19e-05]
[1748817500587,0.35004698,105530.0,105520.0,9.19e-05]
[1748817500786,0.41574821,105530.0,105520.0,9.19e-05]
[1748817504376,0.40044821,105530.0,105520.0,9.19e-05]
[1748817504588,0.40028821,105530.0,105520.0,0.0151919]
[1748817505693,0.41608821,105530.0,105520.0,9.19e-05]
[1748817509498,0.41608667,105530.0,105520.0,9.19e-05]
[1748817511140,0.40028667,105530.0,105520.0,0.0165919]
[1748817511343,0.41658667,105530.0,105520.0,9.19e-05]
[1748817515936,0.41658224,105530.0,105520.0,9.19e-05]
[1748817518585,0.41658252,105530.0,105520.0,9.19e-05]
[1748817521406,5.05091797,105530.0,105520.0,9.19e-05]
[1748817521624,4.99467852,105530.0,105520.0,9.19e-05]
[1748817523045,4.99468032,105530.0,105520.0,9.19e-05]
[1748817523668,5.05696097,105530.0,105520.0,9.19e-05]
[1748817524514,5.05396097,105530.0,105520.0,9.19e-05]
[1748817524717,5.05196097,105530.0,105520.0,9.19e-05]
[1748817524923,5.06096097,105530.0,105520.0,0.0010919]
[1748817525125,5.06896097,105530.0,105520.0,0.0010919]
[1748817525527,5.16147219,105530.0,105520.0,0.0010919]
[1748817527530,5.16145155,105530.0,105520.0,0.0010919]
[1748817528156,0.21355506,105520.0,105510.0,0.0106413]
[1748817528384,4.98622284,105520.0,105510.0,0.01077914]
[1748817528798,5.28138284,105520.0,105510.0,0.01077914]
[1748817529004,5.30984584,105520.0,105510.0,0.01077914]
[1748817529208,5.40235706,105520.0,105510.0,0.01077914]
[1748817529422,5.40435706,105520.0,105510.0,0.01077914]
[1748817529666,5.40535706,105520.0,105510.0,0.01077914]
[1748817529902,5.31284584,105520.0,105510.0,0.01077914]
[1748817531995,5.31282134,105520.0,105510.0,0.01077914]
[1748817540698,5.31278545,105520.0,105510.0,0.01077914]
[1748817541333,5.40474545,105520.0,105510.0,0.01077914]
[1748817541531,5.44835338,105520.0,105510.0,0.01077914]
[1748817544707,0.22307101,105500.0,105490.0,0.0162]
[1748817544973,0.19907082,105490.0,105480.0,0.03918663]
[1748817545181,0.19907082,105490.0,105480.0,0.03203952]
[1748817545182,0.21361167,105490.0,105480.0,0.03203952]
[1748817545409,0.21361167,105490.0,105480.0,0.03204027]
[1748817545819,0.21361167,105490.0,105480.0,0.04854027]
[1748817546025,0.21361167,105490.0,105480.0,0.04853779]
[1748817546455,0.21361167,105490.0,105480.0,0.04853846]
[1748817546660,0.21361167,105490.0,105480.0,0.05253656]
[1748817546863,0.23245058,105490.0,105480.0,0.05253656]
[1748817547275,0.23245058,105490.0,105480.0,0.05753656]
[1748817547889,0.23245058,105490.0,105480.0,0.05753583]
[1748817548618,0.24206552,105490.0,105480.0,0.05753671]
[1748817549054,0.24206552,105490.0,105480.0,0.04103557]
[1748817549652,0.24206552,105490.0,105480.0,0.04103569]
[1748817550079,0.24206552,105490.0,105480.0,0.03217084]
[1748817550301,0.24206552,105490.0,105480.0,0.04103566]
[1748817550493,0.24206552,105490.0,105480.0,0.04737084]
[1748817550695,0.25154482,105490.0,105480.0,0.25532661]
[1748817551192,0.25154482,105490.0,105480.0,0.26480653]
[1748817551460,0.24206552,105490.0,105480.0,0.26480657]
[1748817552028,0.23258613,105490.0,105480.0,0.04118421]
[1748817552232,0.23258613,105490.0,105480.0,0.05005072]
[1748817552437,0.23258613,105490.0,105480.0,0.05005075]
[1748817552788,0.23258613,105490.0,105480.0,0.05005201]
[1748817552941,0.23258613,105490.0,105480.0,0.05953248]
[1748817553114,0.23258613,105490.0,105480.0,0.03485201]
[1748817553521,0.23258613,105490.0,105480.0,0.02598421]
[1748817553758,0.23258613,105490.0,105480.0,0.03485173]
[1748817554825,0.23258613,105490.0,105480.0,0.03485149]
[1748817555034,0.23258613,105490.0,105480.0,0.03485156]
[1748817556051,0.23258613,105490.0,105480.0,0.03485127]
[1748817556210,0.23258613,105490.0,105480.0,0.05105127]
[1748817556714,0.23258613,105490.0,105480.0,0.04218421]
[1748817556897,0.23258613,105490.0,105480.0,0.05105139]
[1748817557452,0.23258613,105490.0,105480.0,0.06053186]
[1748817557691,0.23258613,105490.0,105480.0,0.05105139]
[1748817558488,0.23258613,105490.0,105480.0,0.05105168]
[1748817558686,0.23258613,105490.0,105480.0,0.04218421]
[1748817558923,0.23258613,105490.0,105480.0,0.05105175]
[1748817559497,0.24206552,105490.0,105480.0,0.06053241]
[1748817559704,0.24206552,105490.0,105480.0,0.04433241]
[1748817559864,0.24206552,105490.0,105480.0,0.2434221]
[1748817560068,0.24206552,105490.0,105480.0,0.24342211]
[1748817561520,0.24206552,105490.0,105480.0,0.24342276]
[1748817561923,0.24206552,105490.0,105480.0,0.23455437]
[1748817562128,0.24206552,105490.0,105480.0,0.24342276]
[1748817562336,0.24206552,105490.0,105480.0,0.25290296]
[1748817562559,0.24206552,105490.0,105480.0,0.24342301]
[1748817563423,0.23258613,105490.0,105480.0,0.23455437]
[1748817563644,0.23258613,105490.0,105480.0,0.24342386]
[1748817563854,0.03363464,105490.0,105480.0,0.27001468]
[1748817564117,0.04311412,105490.0,105480.0,0.31497237]
[1748817564553,0.04311403,105490.0,105480.0,0.31497237]
[1748817564771,0.05259315,105490.0,105480.0,0.31497174]
[1748817564988,0.05259315,105490.0,105480.0,0.31497248]
[1748817565241,0.05259315,105490.0,105480.0,0.3061023]
[1748817565409,0.05259315,105490.0,105480.0,0.31497312]
[1748817565613,0.03363464,105490.0,105480.0,0.31497312]
[1748817565812,0.03363473,105490.0,105480.0,0.31497312]
[1748817566013,0.04311385,105490.0,105480.0,0.33271528]
[1748817566222,0.04311385,105490.0,105480.0,0.33271483]
[1748817566420,0.04311385,105490.0,105480.0,0.33271586]
[1748817566640,0.04311385,105490.0,105480.0,0.33271791]
[1748817567045,0.04311385,105490.0,105480.0,0.32384598]
[1748817567263,0.04311385,105490.0,105480.0,0.33271782]
[1748817567663,0.04311385,105490.0,105480.0,0.33271849]
[1748817568083,0.04311385,105490.0,105480.0,0.33271854]
[1748817568333,0.04311385,105490.0,105480.0,0.32384648]
[1748817568554,0.04311385,105490.0,105480.0,0.33271852]
[1748817568726,0.04311385,105490.0,105480.0,0.3061023]
[1748817568935,0.04311385,105490.0,105480.0,0.33271916]
[1748817569139,0.03363473,105490.0,105480.0,0.33271916]
[1748817569338,0.04311385,105490.0,105480.0,0.3061023]
[1748817569541,0.04311385,105490.0,105480.0,0.33272212]
[1748817569881,0.04311385,105490.0,105480.0,0.33575529]
[1748817570063,0.04311385,105490.0,105480.0,0.33575545]
[1748817570420,0.02415579,105490.0,105480.0,0.43161009]
[1748817570626,0.03363455,105490.0,105480.0,0.43160977]
[1748817571045,0.03363455,105490.0,105480.0,0.4316096]
[1748817571254,0.03363455,105490.0,105480.0,0.43160948]
[1748817571691,0.03363455,105490.0,105480.0,0.4316124]
[1748817572125,0.03363455,105490.0,105480.0,0.43161231]
[1748817572298,0.04311349,105490.0,105480.0,0.43161213]
[1748817572506,0.04311349,105490.0,105480.0,0.41386394]
[1748817572728,0.04311349,105490.0,105480.0,0.43161193]
[1748817573156,0.04311349,105490.0,105480.0,0.72641383]
[1748817573359,0.04311349,105490.0,105480.0,0.72641459]
[1748817574080,0.04311349,105490.0,105480.0,0.72641651]
[1748817574488,0.04311349,105490.0,105480.0,0.72338364]
[1748817574695,0.04311349,105490.0,105480.0,0.72642074]
[1748817574918,0.04311349,105490.0,105480.0,0.72642041]
[1748817575608,0.04311349,105490.0,105480.0,0.70866624]
[1748817575814,0.04311349,105490.0,105480.0,0.71754212]
[1748817576024,0.04311349,105490.0,105480.0,0.72641834]
[1748817576971,0.03363455,105490.0,105480.0,0.72641826]
[1748817577248,0.04311349,105490.0,105480.0,0.71754204]
[1748817577457,0.04311349,105490.0,105480.0,0.7264182]
[1748817577668,0.04311349,105490.0,105480.0,0.72641816]
[1748817578006,0.04311349,105490.0,105480.0,0.7264179]
[1748817578672,0.04311349,105490.0,105480.0,0.72641696]
[1748817579099,0.04311349,105490.0,105480.0,0.72338388]
[1748817579223,0.04311349,105490.0,105480.0,0.72641687]
[1748817579632,0.04311349,105490.0,105480.0,0.71754114]
[1748817579867,0.04311349,105490.0,105480.0,0.72641677]
[1748817580232,0.04311349,105490.0,105480.0,0.72641657]
[1748817580656,0.01454085,105490.0,105480.0,1.06641609]
[1748817580862,0.01454085,105490.0,105480.0,1.07005748]
[1748817581288,0.01454085,105490.0,105480.0,1.05230849]
[1748817581491,0.01899138,105500.0,105490.0,0.24922906]
[1748817581719,0.0524884,105500.0,105490.0,0.37473933]
[1748817582124,0.0524884,105500.0,105490.0,0.37473681]
[1748817582497,0.0524884,105500.0,105490.0,0.36586322]
[1748817582693,0.0619668,105500.0,105490.0,0.37473661]
[1748817582895,0.0629668,105500.0,105490.0,0.35026322]
[1748817583111,0.0629668,105500.0,105490.0,0.35913584]
[1748817583322,0.0639668,105500.0,105490.0,0.35913384]
[1748817584480,0.0639668,105500.0,105490.0,0.35912776]
[1748817584700,0.0639668,105500.0,105490.0,0.33251628]
[1748817584926,0.0639668,105500.0,105490.0,0.35912686]
[1748817585391,0.06396653,105500.0,105490.0,0.35912691]
[1748817585616,0.06396653,105500.0,105490.0,0.3591274]
[1748817585834,0.06396653,105500.0,105490.0,0.35912773]
[1748817586068,0.06396653,105500.0,105490.0,0.34138698]
[1748817586294,0.06396653,105500.0,105490.0,0.35912855]
[1748817586727,0.07344502,105500.0,105490.0,0.35912827]
[1748817587164,0.07344502,105500.0,105490.0,0.35912843]
[1748817587611,0.07344502,105500.0,105490.0,0.35025794]
[1748817587806,0.07344502,105500.0,105490.0,0.35912878]
[1748817588050,0.07344502,105500.0,105490.0,0.35912815]
[1748817588277,0.07344502,105500.0,105490.0,0.35912816]
[1748817588477,0.07344502,105500.0,105490.0,0.34138691]
[1748817588695,0.07344502,105500.0,105490.0,0.35912932]
[1748817588864,0.07344502,105500.0,105490.0,0.35913021]
[1748817589084,0.07344502,105500.0,105490.0,0.34138764]
[1748817589293,0.07344502,105500.0,105490.0,0.35913419]
[1748817589499,0.07344502,105500.0,105490.0,0.35913593]
[1748817589699,0.07344502,105500.0,105490.0,0.35026313]
[1748817590137,0.06396653,105500.0,105490.0,0.3575897]
[1748817590476,0.06396653,105500.0,105490.0,0.37533643]
[1748817590668,0.07344493,105500.0,105490.0,0.37533626]
[1748817590840,0.06396644,105500.0,105490.0,0.34871629]
[1748817591053,0.02605437,105500.0,105490.0,0.37533739]
[1748817591254,0.03553232,105500.0,105490.0,0.37533739]
[1748817592048,0.03553232,105500.0,105490.0,0.36646369]
[1748817592255,0.04501036,105500.0,105490.0,0.35758997]
[1748817592506,0.03553223,105500.0,105490.0,0.37533728]
[1748817592713,0.03553223,105500.0,105490.0,0.37533499]
[1748817593140,0.002,105500.0,105490.0,0.34871616]
[1748817593360,0.002,105500.0,105490.0,0.3753366]
[1748817593586,0.002,105500.0,105490.0,0.3575895]
[1748817593803,0.002,105500.0,105490.0,0.37533758]
[1748817594237,0.002,105500.0,105490.0,0.3753356]
[1748817594407,0.002,105500.0,105490.0,0.37533531]
[1748817594626,0.01147795,105500.0,105490.0,0.36646358]
[1748817594813,0.02095608,105500.0,105490.0,0.37533477]
[1748817595462,0.02095608,105500.0,105490.0,0.35758835]
[1748817595760,0.02095608,105500.0,105490.0,0.37533274]
[1748817595974,0.02095599,105500.0,105490.0,0.37533274]
[1748817596192,0.02095599,105500.0,105490.0,0.34871616]
[1748817596383,0.02095599,105500.0,105490.0,0.37533489]
[1748817597256,0.002,105500.0,105490.0,0.37533376]
[1748817597695,0.01147795,105500.0,105490.0,0.37533376]
[1748817598301,0.002,105500.0,105490.0,0.37533376]
[1748817598503,0.01147795,105500.0,105490.0,0.37533376]
[1748817599062,0.01147795,105500.0,105490.0,0.37533289]
[1748817599286,0.02095608,105500.0,105490.0,0.35758836]
[1748817599516,0.01147795,105500.0,105490.0,0.38198709]
[1748817599730,0.01147795,105500.0,105490.0,0.38198734]
[1748817600176,0.01147795,105500.0,105490.0,0.3553704]
[1748817600410,0.01147795,105500.0,105490.0,0.38198761]
[1748817600637,0.01147795,105500.0,105490.0,0.38198784]
[1748817600880,0.02095608,105500.0,105490.0,0.38198855]
[1748817601104,0.02095608,105500.0,105490.0,0.38198856]
[1748817601330,0.01147795,105500.0,105490.0,0.38198802]
[1748817601556,0.01147795,105500.0,105490.0,0.37533368]
[1748817601779,0.002,105500.0,105490.0,0.38198793]
[1748817601995,0.01147795,105500.0,105490.0,0.38198793]
[1748817602498,0.01147795,105500.0,105490.0,0.35537049]
[1748817602718,0.01147795,105500.0,105490.0,0.38198846]
[1748817602935,0.01147795,105500.0,105490.0,0.38198818]
[1748817603146,0.01147795,105500.0,105490.0,0.38198807]
[1748817603407,0.01147795,105500.0,105490.0,0.38198793]
[1748817603801,0.01147795,105500.0,105490.0,0.3487161]
[1748817604025,0.01147795,105500.0,105490.0,0.3819884]
[1748817604243,0.02095599,105500.0,105490.0,0.3819884]
[1748817604470,0.02095599,105500.0,105490.0,0.38198839]
[1748817604738,0.02095599,105500.0,105490.0,0.67642881]
[1748817604948,0.02095599,105500.0,105490.0,0.67642929]
[1748817605499,0.01147795,105500.0,105490.0,0.66022929]
[1748817605920,0.01147795,105500.0,105490.0,0.65357502]
[1748817606137,0.01147795,105500.0,105490.0,0.67622993]
[1748817606352,0.01147795,105500.0,105490.0,0.67623066]
[1748817606571,0.002,105500.0,105490.0,0.67623066]
[1748817606784,0.01147795,105500.0,105490.0,0.67623022]
[1748817606995,0.01147795,105500.0,105490.0,0.67987296]
[1748817607236,0.01147795,105500.0,105490.0,0.67987281]
[1748817607658,0.01147795,105500.0,105490.0,0.67987211]
[1748817607861,0.002,105500.0,105490.0,0.67987211]
[1748817608067,0.01147795,105500.0,105490.0,0.67987211]
[1748817608285,0.01147795,105500.0,105490.0,0.66212652]
[1748817608496,0.01147795,105500.0,105490.0,0.67100025]
[1748817608700,0.002,105500.0,105490.0,0.67987309]
[1748817609222,0.002,105500.0,105490.0,1.33146555]
[1748817609456,0.04382317,105540.0,105530.0,0.21794639]
[1748817609690,0.06277342,105540.0,105530.0,0.34121355]
[1748817609925,0.06783928,105540.0,105530.0,0.34121355]
[1748817610170,0.23330556,105550.0,105540.0,0.20845114]
[1748817610390,0.24277911,105550.0,105540.0,0.22332471]
[1748817610620,0.24277911,105550.0,105540.0,0.21792604]
[1748817610621,0.04382128,105550.0,105540.0,0.21792604]
[1748817610861,0.01894728,105550.0,105540.0,0.33865479]
[1748817611133,0.05243604,105550.0,105540.0,0.33879276]
[1748817611373,0.07731013,105550.0,105540.0,0.61775276]
[1748817611675,0.00947355,105550.0,105540.0,0.61775276]
[1748817611890,0.22392817,105560.0,105550.0,0.20843156]
[1748817612118,0.23846902,105560.0,105550.0,0.19895765]
[1748817612335,0.23846902,105560.0,105550.0,0.18948365]
[1748817612336,0.22899601,105560.0,105550.0,0.18948365]
[1748817612597,0.22899601,105560.0,105550.0,0.19895783]
[1748817612598,0.22890864,105560.0,105550.0,0.19895783]
[1748817613040,0.23593536,105560.0,105550.0,0.00947418]
[1748817613468,0.24493536,105560.0,105550.0,0.01047418]
[1748817613724,0.24493536,105560.0,105550.0,0.02094827]
[1748817613933,0.25293536,105560.0,105550.0,0.02094827]
[1748817614120,0.25293536,105560.0,105550.0,0.21043192]
[1748817614375,0.25293536,105560.0,105550.0,0.21990583]
[1748817614376,0.23643536,105560.0,105550.0,0.21990583]
[1748817614595,0.23643536,105560.0,105550.0,0.22937956]
[1748817615055,0.23643536,105560.0,105550.0,0.21990583]
[1748817615260,0.23643536,105560.0,105550.0,0.22937965]
[1748817615482,0.23643536,105560.0,105550.0,0.21990583]
[1748817615708,0.25293536,105560.0,105550.0,0.21043192]
[1748817616816,0.25293536,105560.0,105550.0,0.21990592]
[1748817617031,0.23643536,105560.0,105550.0,0.21990592]
[1748817617251,0.05641395,105560.0,105550.0,0.33470777]
[1748817617487,0.26482576,105560.0,105550.0,0.33470786]
[1748817617959,0.26482576,105560.0,105550.0,0.33470732]
[1748817618388,0.26482576,105560.0,105550.0,0.32523368]
[1748817618831,0.28132576,105560.0,105550.0,0.60995995]
[1748817619270,0.26482576,105560.0,105550.0,0.61943377]
[1748817619498,0.25535293,105560.0,105550.0,0.59101204]
[1748817619704,0.26237983,105560.0,105550.0,0.2962]
[1748817621725,0.26237983,105560.0,105550.0,0.002]
[1748817629279,5.16437583,105560.0,105550.0,0.002]
[1748817629929,5.55427013,105560.0,105550.0,0.002]
[1748817635013,5.55921695,105560.0,105550.0,0.002]
[1748817636558,5.55917695,105560.0,105550.0,0.002]
[1748817648715,5.1471945,105550.0,105540.0,0.00013797]
[1748817648920,5.35485385,105550.0,105540.0,0.00013797]
[1748817649124,5.3342888,105550.0,105540.0,0.00013797]
[1748817650344,5.3422888,105550.0,105540.0,0.00113797]
[1748817650761,5.3492888,105550.0,105540.0,0.00113797]
[1748817650982,5.2580488,105550.0,105540.0,0.00113797]
[1748817651201,5.6431688,105550.0,105540.0,0.00113797]